fUSD/lending_fUSD_20240518
["ID","MTS","AMOUNT","RATE_DAILY","PERIOD"]
[327367034,1716023439868,-500.0,0.00038356,16]
[327367036,1716023439878,-500.0,0.00038356,16]
[327367038,1716023439890,-500.0,0.00038356,16]
[327367041,1716023439900,-500.0,0.00038356,16]
[327367043,1716023439909,-500.0,0.00038356,16]
[327367045,1716023439919,-500.0,0.00038356,16]
[327367047,1716023439928,-500.0,0.00038356,16]
[327367049,1716023439937,-500.0,0.00038356,16]
[327367052,1716023439947,-500.0,0.00038356,16]
[327367055,1716023439956,-503.99834449,0.00038356,16]
[327367057,1716023439965,-499.36787706,0.00038356,16]
[327367059,1716023439975,-4.45043922,0.00038356,16]
[327367069,1716023440032,-529.8149531,0.00038356,16]
[327367072,1716023440042,-500.0,0.00038356,16]
[327367074,1716023440051,-500.0,0.00038356,16]
[327367076,1716023440060,-501.62248888,0.00038356,16]
[327367078,1716023440069,-500.0,0.00038356,16]
[327367080,1716023440079,-500.0,0.00038356,16]
[327367082,1716023440088,-500.0,0.00038356,16]
[327367084,1716023440097,-500.0,0.00038356,16]
[327367086,1716023440108,-500.0,0.00038356,16]
[327367088,1716023440116,-534.82869019,0.00038356,16]
[327367090,1716023440125,-500.0,0.00038356,16]
[327367092,1716023440135,-500.0,0.00038356,16]
[327367094,1716023440144,-500.0,0.00038356,16]
[327367096,1716023440152,-500.0,0.00038356,16]
[327367097,1716023440162,-502.0105644,0.00038356,16]
[327367100,1716023440171,-1.72330343,0.00038356,16]
[327367133,1716023440559,-348.954301,0.00038256,2]
[327367134,1716023440568,-6.76995026,0.00038356,16]
[327367263,1716023445917,-1441.84001218,0.00038354,4]
[327367264,1716023445926,-1481.05847419,0.00038355,4]
[327367265,1716023445936,-14140.00618443,0.00038355,4]
[327367266,1716023445945,-491.50674631,0.00038356,16]
[327367267,1716023445955,-500.0,0.00038356,16]
[327367268,1716023445964,-500.0,0.00038356,16]
[327367269,1716023445974,-503.87968763,0.00038356,16]
[327367270,1716023445983,-500.0,0.00038356,16]
[327367271,1716023445993,-500.0,0.00038356,16]
[327367272,1716023446003,-568.97792195,0.00038356,16]
[327367273,1716023446012,-505.28292492,0.00038356,16]
[327367274,1716023446021,-500.0,0.00038356,16]
[327367275,1716023446031,-500.0,0.00038356,16]
[327367276,1716023446040,-500.0,0.00038356,16]
[327367277,1716023446050,-500.0,0.00038356,16]
[327367278,1716023446060,-500.0,0.00038356,16]
[327367279,1716023446069,-500.0,0.00038356,16]
[327367280,1716023446078,-248.26860918,0.00038356,16]
[327367281,1716023446088,-500.0,0.00038356,16]
[327367282,1716023446097,-529.92621918,0.00038356,16]
[327367283,1716023446107,-500.0,0.00038356,16]
[327367284,1716023446116,-500.0,0.00038356,16]
[327367285,1716023446125,-500.0,0.00038356,16]
[327367286,1716023446134,-535.58144929,0.00038356,16]
[327367287,1716023446143,-500.0,0.00038356,16]
[327367288,1716023446153,-500.0,0.00038356,16]
[327367289,1716023446162,-500.0,0.00038356,16]
[327367290,1716023446171,-500.0,0.00038356,16]
[327367291,1716023446180,-500.0,0.00038356,16]
[327367292,1716023446190,-506.59733955,0.00038356,16]
[327367293,1716023446199,-500.0,0.00038356,16]
[327367294,1716023446208,-500.0,0.00038356,16]
[327367295,1716023446217,-500.0,0.00038356,16]
[327367296,1716023446227,-500.0,0.00038356,16]
[327367297,1716023446237,-504.37904937,0.00038356,16]
[327367298,1716023446246,-500.0,0.00038356,16]
[327367299,1716023446257,-500.0,0.00038356,16]
[327367300,1716023446267,-500.0,0.00038356,16]
[327367301,1716023446278,-500.0,0.00038356,16]
[327367302,1716023446288,-500.0,0.00038356,16]
[327367303,1716023446297,-500.0,0.00038356,16]
[327367304,1716023446307,-500.0,0.00038356,16]
[327367305,1716023446317,-500.0,0.00038356,16]
[327367306,1716023446327,-500.0,0.00038356,16]
[327367308,1716023446337,-182.35792724,0.00038356,16]
[327367310,1716023446347,-500.0,0.00038356,16]
[327367311,1716023446356,-508.4502017,0.00038356,16]
[327367312,1716023446366,-500.0,0.00038356,16]
[327367313,1716023446375,-512.74594594,0.00038356,16]
[327367314,1716023446385,-500.0,0.00038356,16]
[327367315,1716023446394,-500.0,0.00038356,16]
[327367316,1716023446404,-500.0,0.00038356,16]
[327367317,1716023446413,-500.0,0.00038356,16]
[327367318,1716023446422,-500.0,0.00038356,16]
[327367319,1716023446432,-500.0,0.00038356,16]
[327367320,1716023446441,-500.0,0.00038356,16]
[327367321,1716023446450,-500.0,0.00038356,16]
[327367322,1716023446459,-500.0,0.00038356,16]
[327367323,1716023446469,-499.0671499,0.00038356,16]
[327367324,1716023446478,-500.0,0.00038356,16]
[327367325,1716023446489,-500.0,0.00038356,16]
[327367326,1716023446498,-500.0,0.00038356,16]
[327367327,1716023446507,-500.0,0.00038356,16]
[327367328,1716023446515,-500.0,0.00038356,16]
[327367329,1716023446525,-500.0,0.00038356,16]
[327367330,1716023446534,-500.0,0.00038356,16]
[327367331,1716023446543,-500.0,0.00038356,16]
[327367332,1716023446552,-500.0,0.00038356,16]
[327367333,1716023446562,-500.0,0.00038356,16]
[327367334,1716023446572,-500.0,0.00038356,16]
[327367335,1716023446581,-500.0,0.00038356,16]
[327367336,1716023446591,-500.0,0.00038356,16]
[327367337,1716023446600,-500.0,0.00038356,16]
[327367338,1716023446610,-500.0,0.00038356,16]
[327367339,1716023446620,-506.37700794,0.00038356,16]
[327367340,1716023446630,-500.0,0.00038356,16]
[327367341,1716023446639,-522.16202074,0.00038356,16]
[327367342,1716023446650,-895.63,0.00038356,16]
[327367343,1716023446659,-500.0,0.00038356,16]
[327367344,1716023446669,-895.63,0.00038356,16]
[327367345,1716023446678,-500.0,0.00038356,16]
[327367346,1716023446687,-500.0,0.00038356,16]
[327367347,1716023446697,-895.63,0.00038356,16]
[327367348,1716023446707,-500.0,0.00038356,16]
[327367349,1716023446716,-500.0,0.00038356,16]
[327367350,1716023446726,-895.63,0.00038356,16]
[327367351,1716023446735,-500.0,0.00038356,16]
[327367352,1716023446746,-511.67886319,0.00038356,16]
[327367353,1716023446761,-500.0,0.00038356,16]
[327367354,1716023447001,-704.03,0.00038356,16]
[327367355,1716023447011,-704.03,0.00038356,16]
[327367356,1716023447020,-704.03,0.00038356,16]
[327367357,1716023447030,-704.03,0.00038356,16]
[327367358,1716023447039,-500.0,0.00038356,16]
[327367359,1716023447048,-500.0,0.00038356,16]
[327367360,1716023447057,-500.0,0.00038356,16]
[327367361,1716023447066,-500.0,0.00038356,16]
[327367362,1716023447076,-500.0,0.00038356,16]
[327367363,1716023447098,-500.0,0.00038356,16]
[327367364,1716023447108,-500.0,0.00038356,16]
[327367365,1716023447118,-500.0,0.00038356,16]
[327367366,1716023447129,-500.0,0.00038356,16]
[327367367,1716023447140,-500.0,0.00038356,16]
[327367368,1716023447150,-362.27384827,0.00038356,16]
[327367369,1716023447160,-502.20494281,0.00038356,16]
[327367370,1716023447170,-500.0,0.00038356,16]
[327367371,1716023447180,-841.55,0.00038356,16]
[327367372,1716023447190,-500.0,0.00038356,16]
[327367373,1716023447200,-841.55,0.00038356,16]
[327367374,1716023447209,-841.55,0.00038356,16]
[327367375,1716023447219,-841.55,0.00038356,16]
[327367376,1716023447230,-500.0,0.00038356,16]
[327367377,1716023447240,-500.0,0.00038356,16]
[327367378,1716023447249,-500.0,0.00038356,16]
[327367379,1716023447259,-500.0,0.00038356,16]
[327367380,1716023447269,-500.0,0.00038356,16]
[327367381,1716023447278,-500.0,0.00038356,16]
[327367382,1716023447288,-511.03482171,0.00038356,16]
[327367383,1716023447300,-518.84142151,0.00038356,16]
[327367384,1716023447310,-500.0,0.00038356,16]
[327367385,1716023447322,-500.0,0.00038356,16]
[327367386,1716023447332,-500.0,0.00038356,16]
[327367387,1716023447344,-500.0,0.00038356,16]
[327367388,1716023447355,-500.0,0.00038356,16]
[327367389,1716023447364,-500.0,0.00038356,16]
[327367390,1716023447375,-500.0,0.00038356,16]
[327367391,1716023447385,-500.0,0.00038356,16]
[327367392,1716023447394,-500.0,0.00038356,16]
[327367393,1716023447404,-500.0,0.00038356,16]
[327367394,1716023447414,-509.83058426,0.00038356,16]
[327367395,1716023447424,-500.0,0.00038356,16]
[327367396,1716023447434,-500.0,0.00038356,16]
[327367397,1716023447445,-500.0,0.00038356,16]
[327367398,1716023447455,-500.0,0.00038356,16]
[327367399,1716023447466,-500.0,0.00038356,16]
[327367400,1716023447477,-500.0,0.00038356,16]
[327367401,1716023447486,-515.75782757,0.00038356,16]
[327367402,1716023447496,-500.0,0.00038356,16]
[327367403,1716023447506,-500.0,0.00038356,16]
[327367404,1716023447515,-500.0,0.00038356,16]
[327367405,1716023447524,-500.0,0.00038356,16]
[327367406,1716023447534,-500.0,0.00038356,16]
[327367407,1716023447544,-500.0,0.00038356,16]
[327367408,1716023447553,-500.0,0.00038356,16]
[327367409,1716023447563,-500.0,0.00038356,16]
[327367410,1716023447572,-500.0,0.00038356,16]
[327367411,1716023447582,-501.81448776,0.00038356,16]
[327367412,1716023447592,-500.0,0.00038356,16]
[327367413,1716023447601,-500.0,0.00038356,16]
[327367414,1716023447611,-500.0,0.00038356,16]
[327367415,1716023447620,-500.0,0.00038356,16]
[327367416,1716023447630,-500.0,0.00038356,16]
[327367417,1716023447639,-500.0,0.00038356,16]
[327367418,1716023447649,-500.0,0.00038356,16]
[327367419,1716023447658,-500.0,0.00038356,16]
[327367420,1716023447668,-500.0,0.00038356,16]
[327367421,1716023447677,-500.0,0.00038356,16]
[327367422,1716023447687,-500.0,0.00038356,16]
[327367423,1716023447696,-504.26436213,0.00038356,16]
[327367424,1716023447706,-500.0,0.00038356,16]
[327367425,1716023447716,-500.0,0.00038356,16]
[327367426,1716023447725,-500.0,0.00038356,16]
[327367427,1716023447735,-500.0,0.00038356,16]
[327367428,1716023447745,-209.93929839,0.00038356,16]
[327367429,1716023447754,-500.0,0.00038356,16]
[327367430,1716023447768,-500.0,0.00038356,16]
[327367431,1716023447777,-223.09085882,0.00038356,16]
[327367432,1716023447786,-500.0,0.00038356,16]
[327367433,1716023447795,-500.0,0.00038356,16]
[327367434,1716023447806,-500.0,0.00038356,16]
[327367435,1716023447816,-500.0,0.00038356,16]
[327367436,1716023447825,-512.79935302,0.00038356,16]
[327367437,1716023447835,-513.04533274,0.00038356,16]
[327367438,1716023447844,-500.0,0.00038356,16]
[327367439,1716023447854,-500.0,0.00038356,16]
[327367440,1716023447864,-500.0,0.00038356,16]
[327367441,1716023447872,-500.0,0.00038356,16]
[327367442,1716023447882,-500.0,0.00038356,16]
[327367443,1716023447891,-500.0,0.00038356,16]
[327367444,1716023447900,-500.0,0.00038356,16]
[327367445,1716023447909,-500.0,0.00038356,16]
[327367446,1716023447918,-500.0,0.00038356,16]
[327367447,1716023447927,-506.98641638,0.00038356,16]
[327367448,1716023447936,-495.1259847,0.00038356,16]
[327367449,1716023447945,-521.71670954,0.00038356,16]
[327367450,1716023447954,-512.8528268,0.00038356,16]
[327367451,1716023447963,-500.0,0.00038356,16]
[327367452,1716023447971,-500.0,0.00038356,16]
[327367453,1716023447981,-305.36398305,0.00038356,16]
[327367454,1716023447990,-500.0,0.00038356,16]
[327367455,1716023447999,-537.50360657,0.00038356,16]
[327367456,1716023448008,-500.0,0.00038356,16]
[327367457,1716023448017,-500.0,0.00038356,16]
[327367458,1716023448026,-500.0,0.00038356,16]
[327367459,1716023448036,-393.24364019,0.00038356,16]
[327367460,1716023448123,-106.75635981,0.00038356,16]
[327367461,1716023448132,-502.20552044,0.00038356,16]
[327367462,1716023448141,-500.0,0.00038356,16]
[327367463,1716023448151,-500.0,0.00038356,16]
[327367464,1716023448161,-500.0,0.00038356,16]
[327367465,1716023448170,-513.37302279,0.00038356,16]
[327367466,1716023448179,-500.0,0.00038356,16]
[327367467,1716023448188,-500.0,0.00038356,16]
[327367468,1716023448197,-570.31887382,0.00038356,16]
[327367469,1716023448206,-500.0,0.00038356,16]
[327367470,1716023448215,-517.18349209,0.00038356,16]
[327367471,1716023448225,-500.0,0.00038356,16]
[327367472,1716023448235,-500.0,0.00038356,16]
[327367473,1716023448244,-500.0,0.00038356,16]
[327367474,1716023448254,-500.0,0.00038356,16]
[327367475,1716023448263,-1070.61,0.00038356,16]
[327367476,1716023448272,-1070.61,0.00038356,16]
[327367477,1716023448282,-1070.61,0.00038356,16]
[327367478,1716023448291,-1070.61,0.00038356,16]
[327367479,1716023448300,-1070.61,0.00038356,16]
[327367480,1716023448309,-500.0,0.00038356,16]
[327367481,1716023448318,-1070.61,0.00038356,16]
[327367482,1716023448327,-500.0,0.00038356,16]
[327367483,1716023448337,-1070.61,0.00038356,16]
[327367484,1716023448347,-1070.61,0.00038356,16]
[327367485,1716023448356,-500.0,0.00038356,16]
[327367486,1716023448365,-1070.61,0.00038356,16]
[327367487,1716023448374,-500.0,0.00038356,16]
[327367488,1716023448385,-1070.61,0.00038356,16]
[327367489,1716023448395,-500.0,0.00038356,16]
[327367490,1716023448404,-500.0,0.00038356,16]
[327367491,1716023448413,-500.0,0.00038356,16]
[327367492,1716023448423,-500.0,0.00038356,16]
[327367493,1716023448432,-509.46773691,0.00038356,16]
[327367494,1716023448441,-500.0,0.00038356,16]
[327367495,1716023448451,-500.0,0.00038356,16]
[327367496,1716023448460,-500.0,0.00038356,16]
[327367497,1716023448470,-500.0,0.00038356,16]
[327367498,1716023448479,-328.82320668,0.00038356,16]
[327367499,1716023448489,-500.0,0.00038356,16]
[327367500,1716023448499,-500.0,0.00038356,16]
[327367501,1716023448509,-500.0,0.00038356,16]
[327367502,1716023448519,-500.0,0.00038356,16]
[327367503,1716023448528,-500.0,0.00038356,16]
[327367504,1716023448538,-500.0,0.00038356,16]
[327367505,1716023448548,-500.0,0.00038356,16]
[327367506,1716023448557,-500.0,0.00038356,16]
[327367507,1716023448567,-500.0,0.00038356,16]
[327367508,1716023448576,-500.0,0.00038356,16]
[327367509,1716023448586,-500.0,0.00038356,16]
[327367510,1716023448596,-500.0,0.00038356,16]
[327367511,1716023448605,-500.0,0.00038356,16]
[327367512,1716023448615,-500.0,0.00038356,16]
[327367513,1716023448625,-500.0,0.00038356,16]
[327367514,1716023448634,-500.0,0.00038356,16]
[327367515,1716023448644,-500.0,0.00038356,16]
[327367516,1716023448653,-500.0,0.00038356,16]
[327367517,1716023448661,-511.48205295,0.00038356,16]
[327367518,1716023448670,-500.0,0.00038356,16]
[327367519,1716023448679,-500.0,0.00038356,16]
[327367520,1716023448688,-500.0,0.00038356,16]
[327367521,1716023448697,-500.0,0.00038356,16]
[327367522,1716023448708,-500.0,0.00038356,16]
[327367523,1716023448717,-500.0,0.00038356,16]
[327367524,1716023448726,-500.0,0.00038356,16]
[327367525,1716023448735,-500.0,0.00038356,16]
[327367526,1716023448745,-500.0,0.00038356,16]
[327367527,1716023448755,-389.69398619,0.00038356,16]
[327367528,1716023448767,-500.0,0.00038356,16]
[327367529,1716023448777,-500.0,0.00038356,16]
[327367530,1716023448787,-500.0,0.00038356,16]
[327367531,1716023448796,-500.0,0.00038356,16]
[327367532,1716023448806,-500.0,0.00038356,16]
[327367533,1716023448816,-500.0,0.00038356,16]
[327367534,1716023448825,-500.0,0.00038356,16]
[327367535,1716023448836,-500.0,0.00038356,16]
[327367536,1716023448845,-621.61806431,0.00038356,16]
[327367537,1716023448855,-500.0,0.00038356,16]
[327367538,1716023448864,-265.50096234,0.00038356,16]
[327367539,1716023448873,-507.25883444,0.00038356,16]
[327367540,1716023448883,-500.0,0.00038356,16]
[327367541,1716023448892,-500.0,0.00038356,16]
[327367542,1716023448902,-500.0,0.00038356,16]
[327367543,1716023448911,-500.0,0.00038356,16]
[327367544,1716023448921,-500.0,0.00038356,16]
[327367545,1716023448931,-555.45912937,0.00038356,16]
[327367546,1716023448940,-500.0,0.00038356,16]
[327367547,1716023448950,-500.0,0.00038356,16]
[327367548,1716023448959,-500.0,0.00038356,16]
[327367549,1716023448968,-500.0,0.00038356,16]
[327367550,1716023448978,-500.0,0.00038356,16]
[327367551,1716023448987,-517.29,0.00038356,16]
[327367552,1716023448997,-519.28391565,0.00038356,16]
[327367553,1716023449006,-500.0,0.00038356,16]
[327367554,1716023449015,-500.0,0.00038356,16]
[327367555,1716023449025,-500.0,0.00038356,16]
[327367556,1716023449034,-306.81914435,0.00038356,16]
[327367557,1716023449043,-500.0,0.00038356,16]
[327367558,1716023449052,-500.0,0.00038356,16]
[327367559,1716023449062,-500.0,0.00038356,16]
[327367560,1716023449071,-506.92982531,0.00038356,16]
[327367561,1716023449080,-500.0,0.00038356,16]
[327367562,1716023449089,-500.0,0.00038356,16]
[327367563,1716023449099,-500.0,0.00038356,16]
[327367564,1716023449108,-500.0,0.00038356,16]
[327367565,1716023449117,-500.0,0.00038356,16]
[327367566,1716023449127,-500.0,0.00038356,16]
[327367567,1716023449136,-500.0,0.00038356,16]
[327367568,1716023449145,-500.0,0.00038356,16]
[327367569,1716023449155,-500.0,0.00038356,16]
[327367570,1716023449164,-500.0,0.00038356,16]
[327367571,1716023449173,-500.0,0.00038356,16]
[327367572,1716023449183,-500.0,0.00038356,16]
[327367573,1716023449192,-500.0,0.00038356,16]
[327367574,1716023449204,-500.0,0.00038356,16]
[327367575,1716023449214,-500.0,0.00038356,16]
[327367576,1716023449224,-544.97,0.00038356,16]
[327367577,1716023449234,-544.97,0.00038356,16]
[327367578,1716023449244,-544.97,0.00038356,16]
[327367579,1716023449253,-544.97,0.00038356,16]
[327367580,1716023449264,-500.0,0.00038356,16]
[327367581,1716023449273,-544.97,0.00038356,16]
[327367582,1716023449283,-500.0,0.00038356,16]
[327367583,1716023449293,-544.97,0.00038356,16]
[327367584,1716023449302,-500.0,0.00038356,16]
[327367585,1716023449312,-500.0,0.00038356,16]
[327367586,1716023449321,-544.97,0.00038356,16]
[327367587,1716023449331,-544.97,0.00038356,16]
[327367588,1716023449340,-268.32676971,0.00038356,16]
[327367596,1716024235379,-155.0,0.0001719,2]
[327367597,1716024235403,-155.0,0.00017191,2]
[327367598,1716024235428,-825.0,0.00017191,2]
[327367712,1716024632038,-2000.27992103,0.00013946,2]
[327367714,1716024632048,-155.0,0.00013947,2]
[327367715,1716024632057,-157.70718433,0.00013947,2]
[327367716,1716024632066,-194.97199603,0.00013948,2]
[327367717,1716024632078,-263.02958027,0.00013948,2]
[327367718,1716024632088,-208.57383812,0.00013949,2]
[327367719,1716024632097,-1068.57478033,0.00013949,2]
[327367720,1716024632109,-411.49062748,0.00013949,2]
[327367721,1716024632118,-1272.41491777,0.0001395,2]
[327367722,1716024632128,-152.86,0.00013973,2]
[327367723,1716024632137,-4850.78142651,0.0001719,2]
[327367724,1716024632152,-2710.90272,0.0001719,2]
[327367725,1716024632167,-852.94314479,0.0001719,2]
[327367726,1716024632190,-2109.57731169,0.0001719,2]
[327367727,1716024632199,-3282.7059757,0.00017191,2]
[327367728,1716024632345,-1802.64317485,0.00017191,2]
[327367729,1716024632360,-2431.88526416,0.00017191,2]
[327367730,1716024632371,-362.08661149,0.00017191,2]
[327367731,1716024632390,-945.36357135,0.00017191,2]
[327367732,1716024632401,-548.83224006,0.00017191,2]
[327367733,1716024632411,-378.77675324,0.000172,2]
[327367734,1716024632423,-324.577575,0.000172,2]
[327367735,1716024632437,-886.15879925,0.000172,2]
[327367736,1716024632448,-499.99,0.000172,2]
[327367759,1716024632764,-322.11807366,0.00017256,2]
[327367760,1716024632773,-150.99,0.00019726,2]
[327367761,1716024632784,-150.99,0.00019726,2]
[327367762,1716024632793,-170.38,0.00019726,2]
[327367763,1716024632803,-1790.38168817,0.00024999,2]
[327367764,1716024632813,-1550.0,0.00025,2]
[327367765,1716024632824,-1600.0,0.00027,2]
[327367766,1716024632834,-155.37,0.00028645,2]
[327367767,1716024632844,-1650.0,0.00029,2]
[327367768,1716024632853,-1481.05847419,0.00029,2]
[327367769,1716024632862,-225.59952986,0.000295,3]
[327367770,1716024632871,-500.0,0.00030335,2]
[327367771,1716024632880,-629.17,0.0003065,2]
[327367772,1716024632889,-2000.0,0.00030864,2]
[327367773,1716024632899,-153.16,0.00030971,120]
[327367774,1716024632909,-1700.0,0.00031,2]
[327367775,1716024632919,-250.0,0.00031326,2]
[327367776,1716024632927,-155.37,0.00031334,2]
[327367777,1716024632937,-159.27,0.00031381,2]
[327367778,1716024632948,-471.92,0.00032706,2]
[327367779,1716024632957,-826.3715483,0.00032758,2]
[327367780,1716024632966,-8350.21,0.00032768,2]
[327367781,1716024632975,-1750.0,0.00033,2]
[327367782,1716024632984,-629.17,0.0003339,2]
[327367783,1716024632994,-150.0,0.00034,2]
[327367784,1716024633003,-155.37,0.00034022,2]
[327367785,1716024633012,-163.88,0.00034377,2]
[327367786,1716024633021,-250.0,0.00034478,115]
[327367787,1716024633031,-153.29,0.00034491,120]
[327367788,1716024633040,-200.0,0.00034496,2]
[327367789,1716024633049,-250.0,0.00034508,2]
[327367790,1716024633058,-13657.11918531,0.00034511,4]
[327367791,1716024633067,-15087.54157222,0.00034596,2]
[327367799,1716024638119,-8812.45842778,0.00034596,2]
[327367800,1716024638128,-1800.0,0.00035,2]
[327367801,1716024638137,-177.32,0.00035734,120]
[327367802,1716024638146,-629.17,0.0003613,2]
[327367803,1716024638156,-500.0,0.00036164,2]
[327367804,1716024638165,-336.13,0.00036409,2]
[327367805,1716024638174,-155.37,0.0003671,2]
[327367806,1716024638183,-471.92,0.00036794,2]
[327367807,1716024638193,-1850.0,0.00037,2]
[327367808,1716024638203,-1000.0,0.00037027,2]
[327367809,1716024638213,-151.0,0.00037219,2]
[327367810,1716024638224,-300.0,0.00037518,2]
[327367811,1716024638233,-2165.2578,0.00037528,2]
[327367812,1716024638243,-1441.84001218,0.000377,4]
[327367813,1716024638252,-150.0,0.00037716,2]
[327367814,1716024638262,-24190.611105,0.000378,2]
[327367815,1716024638271,-5766.67265083,0.000378,2]
[327367816,1716024638283,-715.59110069,0.000378,2]
[327367817,1716024638294,-3646.45277639,0.000378,2]
[327367818,1716024638305,-14061.89457709,0.000378,2]
[327367819,1716024638314,-24190.611105,0.000378,2]
[327367820,1716024638324,-24190.611105,0.000378,2]
[327367821,1716024638334,-24190.611105,0.000378,2]
[327367822,1716024638344,-24190.611105,0.000378,2]
[327367823,1716024638353,-3395.62804381,0.000378,2]
[327367824,1716024638369,-20794.98306119,0.000378,2]
[327367825,1716024638378,-24190.611105,0.000378,2]
[327367826,1716024638388,-24190.611105,0.000378,2]
[327367827,1716024638398,-15658.10791282,0.000378,2]
[327367828,1716024638409,-319.8,0.000378,2]
[327367829,1716024638428,-289.47602467,0.000378,2]
[327367830,1716024638441,-7923.22716751,0.000378,2]
[327367831,1716024638451,-2168.63707477,0.000378,2]
[327367832,1716024638462,-323.97031072,0.000378,2]
[327367833,1716024638473,-7076.96488765,0.000378,2]
[327368002,1716024640248,-439.54636968,0.000378,2]
[327368007,1716024640260,-2350.58458759,0.000378,2]
[327368010,1716024640272,-1212.14956,0.000378,2]
[327368017,1716024640298,-2043.68283196,0.000378,2]
[327368020,1716024640309,-354.2050011,0.000378,2]
[327368026,1716024640349,-8220.87048153,0.000378,2]
[327368028,1716024640361,-8196.38606034,0.000378,2]
[327368055,1716024640626,-6238.78523602,0.000378,2]
[327368057,1716024640638,-9755.43980864,0.000378,2]
[327368059,1716024640648,-24190.611105,0.000378,2]
[327368061,1716024640658,-869.77266965,0.000378,2]
[327368064,1716024640669,-1848.21879468,0.000378,2]
[327368066,1716024640681,-671.80019193,0.000378,2]
[327368069,1716024640696,-590.46,0.000378,2]
[327368076,1716024640755,-3822.6285338,0.000378,2]
[327368078,1716024640770,-2194.98494926,0.000378,2]
[327368081,1716024640783,-5283.45868697,0.000378,2]
[327368083,1716024640793,-611.93509806,0.000378,2]
[327368085,1716024640805,-504.36232548,0.000378,2]
[327368309,1716024643274,-353.20175428,0.000378,2]
[327368310,1716024643286,-403.8062101,0.000378,2]
[327368311,1716024643327,-1677.97344209,0.000378,2]
[327368312,1716024643340,-5358.0084487,0.000378,2]
[327368313,1716024643349,-5462.51836413,0.000378,2]
[327368314,1716024643365,-1636.54624105,0.000378,2]
[327368315,1716024643380,-1441.75038011,0.000378,2]
[327368316,1716024643428,-15649.79611971,0.000378,2]
[327368317,1716024643439,-24190.611105,0.000378,2]
[327368318,1716024643448,-24190.611105,0.000378,2]
[327368319,1716024643459,-24190.611105,0.000378,2]
[327368320,1716024643468,-24190.611105,0.000378,2]
[327368321,1716024643478,-24190.611105,0.000378,2]
[327368322,1716024643487,-24190.611105,0.000378,2]
[327368323,1716024643497,-302.0,0.00037844,4]
[327368324,1716024643506,-4533.10626789,0.000379,30]
[327368325,1716024643515,-150.0,0.00038185,2]
[327368326,1716024643524,-3128.81742396,0.000382,120]
[327368348,1716024643860,-6871.18257604,0.000382,120]
[327368350,1716024643869,-150.0,0.0003823,2]
[327368352,1716024643878,-368.9613,0.00038253,2]
[327368354,1716024643887,-2923.93867531,0.00038254,11]
[327368356,1716024643896,-161.54979383,0.00038254,11]
[327368358,1716024643905,-474.6405,0.00038255,2]
[327368360,1716024643914,-161.54979382,0.00038256,11]
[327368362,1716024643923,-199.96781807,0.00038256,2]
[327368364,1716024643933,-267.67820455,0.00038256,2]
[327368366,1716024643942,-150.0,0.00038262,2]
[327368368,1716024643951,-150.0,0.00038282,2]
[327368370,1716024643961,-319.3,0.00038301,2]
[327368372,1716024643970,-150.0,0.0003832,2]
[327368374,1716024643979,-157.051817,0.00038332,42]